fUSD/lending_fUSD_20260505
["ID","MTS","AMOUNT","RATE_DAILY","PERIOD"]
[421598698,1777938731000,-500.0,0.00041698,120]
[421598699,1777938731000,-782.2,0.00041698,120]
[421598697,1777938731000,-617.91,0.00041698,120]
[421598696,1777938731000,-500.0,0.00041698,120]
[421598695,1777938731000,-500.0,0.00041698,120]
[421598701,1777938731000,-500.0,0.00041698,120]
[421598684,1777938731000,-500.0,0.00041698,120]
[421598703,1777938731000,-573.65900283,0.00041698,120]
[421598704,1777938731000,-500.0,0.00041698,120]
[421598705,1777938731000,-500.0,0.00041698,120]
[421598707,1777938731000,-500.0,0.00041698,120]
[421598706,1777938731000,-500.0,0.00041698,120]
[421598709,1777938731000,-500.0,0.00041698,120]
[421598712,1777938731000,-500.0,0.00041698,120]
[421598715,1777938731000,-500.0,0.00041698,120]
[421598710,1777938731000,-500.0,0.00041698,120]
[421598714,1777938731000,-500.0,0.00041698,120]
[421598713,1777938731000,-500.0,0.00041698,120]
[421598711,1777938731000,-500.0,0.00041698,120]
[421598702,1777938731000,-500.0,0.00041698,120]
[421598708,1777938731000,-500.0,0.00041698,120]
[421598804,1777938732000,-500.0,0.00041698,120]
[421598789,1777938732000,-500.0,0.00041698,120]
[421598790,1777938732000,-516.07684669,0.00041698,120]
[421598788,1777938732000,-500.0,0.00041698,120]
[421598781,1777938732000,-3866.31,0.00041698,2]
[421598785,1777938732000,-500.0,0.00041698,120]
[421598786,1777938732000,-526.93,0.00041698,120]
[421598787,1777938732000,-500.0,0.00041698,120]
[421598784,1777938732000,-500.0,0.00041698,120]
[421598792,1777938732000,-500.0,0.00041698,120]
[421598783,1777938732000,-500.0,0.00041698,120]
[421598794,1777938732000,-19191.44,0.00041698,120]
[421598791,1777938732000,-500.0,0.00041698,120]
[421598797,1777938732000,-500.0,0.00041698,120]
[421598802,1777938732000,-20831.24,0.00041698,120]
[421598799,1777938732000,-500.0,0.00041698,120]
[421598793,1777938732000,-500.0,0.00041698,120]
[421598805,1777938732000,-507.75,0.00041698,120]
[421598795,1777938732000,-500.0,0.00041698,120]
[421598801,1777938732000,-500.0,0.00041698,120]
[421598803,1777938732000,-500.0,0.00041698,120]
[421598796,1777938732000,-500.0,0.00041698,120]
[421598800,1777938732000,-556.71,0.00041698,120]
[421598806,1777938732000,-500.0,0.00041698,120]
[421598807,1777938732000,-1227.72,0.00041698,120]
[421598809,1777938732000,-500.0,0.00041698,120]
[421598808,1777938732000,-546.18,0.00041698,120]
[421598782,1777938732000,-500.0,0.00041698,120]
[421598798,1777938732000,-696.58,0.00041698,120]
[421598772,1777938732000,-500.0,0.00041698,120]
[421598753,1777938732000,-535.0001993,0.00041698,120]
[421598777,1777938732000,-500.0,0.00041698,120]
[421598818,1777938732000,-983.68,0.00041698,120]
[421598754,1777938732000,-527.86,0.00041698,120]
[421598752,1777938732000,-500.0,0.00041698,120]
[421598750,1777938732000,-500.0,0.00041698,120]
[421598751,1777938732000,-500.0,0.00041698,120]
[421598749,1777938732000,-500.0,0.00041698,120]
[421598756,1777938732000,-500.0,0.00041698,120]
[421598757,1777938732000,-525.03,0.00041698,120]
[421598755,1777938732000,-500.0,0.00041698,120]
[421598766,1777938732000,-500.0,0.00041698,5]
[421598767,1777938732000,-500.0,0.00041698,120]
[421598758,1777938732000,-500.0,0.00041698,120]
[421598759,1777938732000,-500.0,0.00041698,120]
[421598760,1777938732000,-550.98,0.00041698,120]
[421598764,1777938732000,-500.0,0.00041698,120]
[421598761,1777938732000,-1185.59,0.00041698,120]
[421598765,1777938732000,-500.0,0.00041698,120]
[421598763,1777938732000,-500.0,0.00041698,120]
[421598762,1777938732000,-500.0,0.00041698,120]
[421598769,1777938732000,-593.7,0.00041698,120]
[421598780,1777938732000,-500.0,0.00041698,120]
[421598779,1777938732000,-689.15,0.00041698,120]
[421598768,1777938732000,-1111.02,0.00041698,120]
[421598770,1777938732000,-682.65,0.00041698,120]
[421598771,1777938732000,-500.0,0.00041698,120]
[421598775,1777938732000,-500.0,0.00041698,120]
[421598773,1777938732000,-500.0,0.00041698,120]
[421598774,1777938732000,-500.0,0.00041698,120]
[421598776,1777938732000,-500.0,0.00041698,120]
[421598778,1777938732000,-558.21488712,0.00041698,120]
[421598817,1777938732000,-500.0,0.00041698,120]
[421598811,1777938732000,-500.0,0.00041698,120]
[421598816,1777938732000,-500.0,0.00041698,120]
[421598851,1777938732000,-695.23,0.00041698,120]
[421598855,1777938732000,-974.58,0.00041698,120]
[421598848,1777938732000,-500.0,0.00041698,120]
[421598845,1777938732000,-500.0,0.00041698,120]
[421598849,1777938732000,-500.0,0.00041698,120]
[421598846,1777938732000,-500.0,0.00041698,120]
[421598847,1777938732000,-500.0,0.00041698,120]
[421598843,1777938732000,-7661.52,0.00041698,120]
[421598853,1777938732000,-500.0,0.00041698,120]
[421598852,1777938732000,-300.0,0.00041698,2]
[421598860,1777938732000,-500.0,0.00041698,120]
[421598869,1777938732000,-500.0,0.00041698,120]
[421598857,1777938732000,-500.0,0.00041698,120]
[421598850,1777938732000,-500.0,0.00041698,120]
[421598859,1777938732000,-500.0,0.00041698,120]
[421598858,1777938732000,-500.0,0.00041698,120]
[421598868,1777938732000,-500.0,0.00041698,120]
[421598861,1777938732000,-1683.66,0.00041698,120]
[421598867,1777938732000,-3600.11,0.00041698,120]
[421598864,1777938732000,-2126.61,0.00041698,120]
[421598863,1777938732000,-539.09,0.00041698,120]
[421598865,1777938732000,-500.0,0.00041698,120]
[421598866,1777938732000,-500.0,0.00041698,120]
[421598871,1777938732000,-500.0,0.00041698,120]
[421598870,1777938732000,-602.25,0.00041698,120]
[421598872,1777938732000,-512.4,0.00041698,120]
[421598873,1777938732000,-500.0,0.00041698,120]
[421598875,1777938732000,-255.12170813,0.00041698,120]
[421598862,1777938732000,-500.0,0.00041698,120]
[421598856,1777938732000,-500.0,0.00041698,120]
[421598874,1777938732000,-507.815,0.00041698,120]
[421598854,1777938732000,-500.0,0.00041698,120]
[421598844,1777938732000,-500.0,0.00041698,120]
[421598815,1777938732000,-500.0,0.00041698,120]
[421598810,1777938732000,-2670.18,0.00041698,120]
[421598812,1777938732000,-500.0,0.00041698,120]
[421598813,1777938732000,-500.0,0.00041698,120]
[421598819,1777938732000,-16320.05,0.00041698,120]
[421598821,1777938732000,-1581.96,0.00041698,120]
[421598823,1777938732000,-500.0,0.00041698,120]
[421598820,1777938732000,-1414.82,0.00041698,120]
[421598824,1777938732000,-500.0,0.00041698,120]
[421598830,1777938732000,-4950.15,0.00041698,120]
[421598825,1777938732000,-515.78,0.00041698,120]
[421598822,1777938732000,-758.08,0.00041698,120]
[421598828,1777938732000,-1948.18,0.00041698,120]
[421598814,1777938732000,-500.0,0.00041698,120]
[421598827,1777938732000,-500.0,0.00041698,120]
[421598826,1777938732000,-500.0,0.00041698,120]
[421598840,1777938732000,-531.97,0.00041698,120]
[421598841,1777938732000,-500.0,0.00041698,120]
[421598842,1777938732000,-500.0,0.00041698,120]
[421598838,1777938732000,-500.0,0.00041698,120]
[421598839,1777938732000,-500.0,0.00041698,120]
[421598836,1777938732000,-500.0,0.00041698,120]
[421598832,1777938732000,-500.0,0.00041698,120]
[421598829,1777938732000,-500.0,0.00041698,120]
[421598835,1777938732000,-500.0,0.00041698,120]
[421598831,1777938732000,-500.0,0.00041698,120]
[421598837,1777938732000,-500.0,0.00041698,120]
[421598834,1777938732000,-500.0,0.00041698,120]
[421598833,1777938732000,-500.0,0.00041698,120]
[421598907,1777938733000,-548.9,0.00041753,120]
[421598908,1777938733000,-500.0,0.00041753,120]
[421598910,1777938733000,-598.67,0.00041753,120]
[421598912,1777938733000,-500.0,0.00041753,120]
[421598911,1777938733000,-274.94,0.00041753,120]
[421598909,1777938733000,-277.34892815,0.00041753,120]
[421598914,1777938733000,-500.0,0.00041753,120]
[421598915,1777938733000,-500.0,0.00041753,120]
[421598925,1777938733000,-500.0,0.00041753,120]
[421598916,1777938733000,-500.0,0.00041753,120]
[421598913,1777938733000,-500.0,0.00041753,120]
[421598919,1777938733000,-500.0,0.00041753,120]
[421598917,1777938733000,-500.0,0.00041753,120]
[421598922,1777938733000,-500.0,0.00041753,120]
[421598920,1777938733000,-500.0,0.00041753,120]
[421598924,1777938733000,-500.0,0.00041753,120]
[421598923,1777938733000,-500.0,0.00041753,120]
[421598903,1777938733000,-500.0,0.00041753,120]
[421598921,1777938733000,-500.0,0.00041753,120]
[421598937,1777938733000,-500.0,0.00041753,120]
[421598927,1777938733000,-500.0,0.00041753,120]
[421598938,1777938733000,-525.42,0.00041753,120]
[421598926,1777938733000,-500.0,0.00041753,120]
[421598928,1777938733000,-500.0,0.00041753,120]
[421598931,1777938733000,-561.7,0.00041753,120]
[421598918,1777938733000,-500.0,0.00041753,120]
[421598900,1777938733000,-500.0,0.00041753,120]
[421598898,1777938733000,-500.0,0.00041753,120]
[421598901,1777938733000,-500.0,0.00041753,120]
[421598929,1777938733000,-500.0,0.00041753,120]
[421598881,1777938733000,-153.0,0.000417,120]
[421598882,1777938733000,-385.81,0.000417,120]
[421598876,1777938733000,-500.0,0.00041698,120]
[421598877,1777938733000,-500.0,0.00041698,120]
[421598879,1777938733000,-511.55,0.00041698,120]
[421598878,1777938733000,-500.0,0.00041698,120]
[421598880,1777938733000,-500.0,0.00041698,120]
[421598883,1777938733000,-409.1,0.00041715,120]
[421598893,1777938733000,-500.0,0.00041753,120]
[421598884,1777938733000,-500.0,0.00041753,3]
[421598885,1777938733000,-500.0,0.00041753,3]
[421598906,1777938733000,-500.0,0.00041753,120]
[421598894,1777938733000,-505.2,0.00041753,120]
[421598889,1777938733000,-503.35902119,0.00041753,120]
[421598888,1777938733000,-569.07925005,0.00041753,120]
[421598892,1777938733000,-500.0,0.00041753,120]
[421598887,1777938733000,-233.85871619,0.00041753,120]
[421598896,1777938733000,-500.0,0.00041753,120]
[421598891,1777938733000,-500.0,0.00041753,120]
[421598890,1777938733000,-232.88473394,0.00041753,120]
[421598897,1777938733000,-500.0,0.00041753,120]
[421598904,1777938733000,-737.03,0.00041753,120]
[421598899,1777938733000,-370.7,0.00041753,120]
[421598902,1777938733000,-500.0,0.00041753,120]
[421598905,1777938733000,-319.72865585,0.00041753,120]
[421598886,1777938733000,-623.0013037,0.00041753,120]
[421598895,1777938733000,-500.0,0.00041753,120]
[421598933,1777938733000,-500.0,0.00041753,120]
[421598932,1777938733000,-500.0,0.00041753,120]
[421598973,1777938733000,-1025.94,0.00041753,120]
[421598966,1777938733000,-181.66322813,0.00041753,120]
[421598962,1777938733000,-500.0,0.00041753,120]
[421598974,1777938733000,-500.0,0.00041753,120]
[421598969,1777938733000,-500.0,0.00041753,120]
[421598971,1777938733000,-154.86555364,0.00041753,120]
[421598968,1777938733000,-500.0,0.00041753,120]
[421598970,1777938733000,-500.0,0.00041753,120]
[421598972,1777938733000,-500.0,0.00041753,120]
[421598976,1777938733000,-500.0,0.00041753,120]
[421598975,1777938733000,-558.58,0.00041753,120]
[421598983,1777938733000,-500.0,0.00041753,2]
[421598967,1777938733000,-500.0,0.00041753,120]
[421598979,1777938733000,-501.59,0.00041753,2]
[421598985,1777938733000,-500.0,0.00041753,120]
[421598986,1777938733000,-500.0,0.00041753,120]
[421598977,1777938733000,-500.0,0.00041753,120]
[421598982,1777938733000,-538.86,0.00041753,120]
[421598980,1777938733000,-500.0,0.00041753,120]
[421598984,1777938733000,-500.0,0.00041753,120]
[421598981,1777938733000,-286.21092095,0.00041753,120]
[421598988,1777938733000,-500.0,0.00041753,120]
[421598990,1777938733000,-500.0,0.00041753,120]
[421598989,1777938733000,-500.0,0.00041753,120]
[421598991,1777938733000,-500.0,0.00041753,120]
[421598930,1777938733000,-519.49,0.00041753,120]
[421598978,1777938733000,-500.0,0.00041753,120]
[421598965,1777938733000,-500.0,0.00041753,120]
[421598987,1777938733000,-500.0,0.00041753,120]
[421598963,1777938733000,-500.0,0.00041753,120]
[421598964,1777938733000,-500.0,0.00041753,120]
[421598936,1777938733000,-500.0,0.00041753,120]
[421598935,1777938733000,-500.0,0.00041753,120]
[421598940,1777938733000,-500.0,0.00041753,120]
[421598939,1777938733000,-500.0,0.00041753,120]
[421598942,1777938733000,-181.70555795,0.00041753,120]
[421598943,1777938733000,-500.0,0.00041753,120]
[421598941,1777938733000,-563.3,0.00041753,120]
[421598950,1777938733000,-500.0,0.00041753,120]
[421598944,1777938733000,-500.0,0.00041753,120]
[421598945,1777938733000,-500.0,0.00041753,120]
[421598948,1777938733000,-500.0,0.00041753,120]
[421598949,1777938733000,-1714.86,0.00041753,120]
[421598934,1777938733000,-500.0,0.00041753,120]
[421598960,1777938733000,-500.0,0.00041753,7]
[421598959,1777938733000,-500.0,0.00041753,120]
[421598958,1777938733000,-500.0,0.00041753,120]
[421598955,1777938733000,-500.0,0.00041753,120]
[421598946,1777938733000,-563.4,0.00041753,120]
[421598954,1777938733000,-500.0,0.00041753,120]
[421598953,1777938733000,-500.0,0.00041753,120]
[421598956,1777938733000,-500.0,0.00041753,120]
[421598961,1777938733000,-529.50126652,0.00041753,120]
[421598951,1777938733000,-500.0,0.00041753,120]
[421598952,1777938733000,-500.0,0.00041753,120]
[421598947,1777938733000,-500.0,0.00041753,120]
[421598957,1777938733000,-500.0,0.00041753,120]
[421599032,1777938734000,-500.0,0.00041753,120]
[421599030,1777938734000,-500.0,0.00041753,120]
[421599027,1777938734000,-519.58887813,0.00041753,120]
[421599028,1777938734000,-500.0,0.00041753,120]
[421599033,1777938734000,-500.0,0.00041753,120]
[421599020,1777938734000,-500.0,0.00041753,120]
[421599029,1777938734000,-500.0,0.00041753,120]
[421599031,1777938734000,-500.0,0.00041753,120]
[421599026,1777938734000,-569.37,0.00041753,120]
[421599021,1777938734000,-500.0,0.00041753,120]
[421599035,1777938734000,-500.83,0.00041753,120]
[421599014,1777938734000,-500.0,0.00041753,120]
[421599036,1777938734000,-513.16,0.00041753,120]
[421599034,1777938734000,-738.47,0.00041753,120]
[421599040,1777938734000,-500.0,0.00041753,120]
[421599048,1777938734000,-500.0,0.00041753,120]
[421599042,1777938734000,-500.0,0.00041753,120]
[421599041,1777938734000,-500.0,0.00041753,120]
[421599038,1777938734000,-500.0,0.00041753,120]
[421599039,1777938734000,-500.0,0.00041753,120]
[421599043,1777938734000,-500.0,0.00041753,120]
[421599044,1777938734000,-500.0,0.00041753,120]
[421599047,1777938734000,-514.29,0.00041753,120]
[421599046,1777938734000,-500.0,0.00041753,120]
[421599045,1777938734000,-168.80218124,0.00041753,120]
[421599050,1777938734000,-500.0,0.00041753,120]
[421599052,1777938734000,-500.0,0.00041753,120]
[421599037,1777938734000,-500.0,0.00041753,120]
[421599025,1777938734000,-500.0,0.00041753,120]
[421598994,1777938734000,-500.0,0.00041753,120]
[421599017,1777938734000,-500.0,0.00041753,120]
[421598996,1777938734000,-574.3,0.00041753,120]
[421598993,1777938734000,-665.59,0.00041753,120]
[421598998,1777938734000,-500.0,0.00041753,120]
[421598992,1777938734000,-681.79,0.00041753,120]
[421598995,1777938734000,-500.0,0.00041753,120]
[421598997,1777938734000,-506.44,0.00041753,120]
[421598999,1777938734000,-699.56,0.00041753,120]
[421599001,1777938734000,-302.03330687,0.00041753,120]
[421599004,1777938734000,-500.0,0.00041753,120]
[421599003,1777938734000,-500.0,0.00041753,120]
[421599051,1777938734000,-500.0,0.00041753,120]
[421599000,1777938734000,-1005.04,0.00041753,120]
[421599002,1777938734000,-500.0,0.00041753,120]
[421599008,1777938734000,-500.0,0.00041753,120]
[421599011,1777938734000,-1415.03,0.00041753,120]
[421599009,1777938734000,-390.88271624,0.00041753,120]
[421599007,1777938734000,-500.0,0.00041753,120]
[421599005,1777938734000,-500.0,0.00041753,120]
[421599006,1777938734000,-562.94,0.00041753,120]
[421599010,1777938734000,-500.0,0.00041753,120]
[421599013,1777938734000,-500.0,0.00041753,120]
[421599023,1777938734000,-500.0,0.00041753,120]
[421599015,1777938734000,-562.44,0.00041753,120]
[421599024,1777938734000,-500.0,0.00041753,120]
[421599016,1777938734000,-500.0,0.00041753,120]
[421599019,1777938734000,-529.74490175,0.00041753,120]
[421599018,1777938734000,-500.0,0.00041753,120]
[421599022,1777938734000,-500.0,0.00041753,120]
[421599049,1777938734000,-600.64,0.00041753,120]
[421599012,1777938734000,-500.0,0.00041753,120]
[421599055,1777938734000,-500.0,0.00041753,120]
[421599087,1777938734000,-760.4,0.00041753,120]
[421599091,1777938734000,-500.0,0.00041753,120]
[421599099,1777938734000,-500.0,0.00041753,120]
[421599090,1777938734000,-500.0,0.00041753,120]
[421599088,1777938734000,-542.72,0.00041753,120]
[421599089,1777938734000,-500.0,0.00041753,120]
[421599092,1777938734000,-2743.4,0.00041753,120]
[421599093,1777938734000,-500.0,0.00041753,120]
[421599096,1777938734000,-500.0,0.00041753,120]
[421599098,1777938734000,-551.61,0.00041753,120]
[421599095,1777938734000,-500.0,0.00041753,120]
[421599094,1777938734000,-2616.79,0.00041753,120]
[421599097,1777938734000,-525.08,0.00041753,120]
[421599083,1777938734000,-500.0,0.00041753,120]
[421599100,1777938734000,-500.0,0.00041753,120]
[421599111,1777938734000,-500.0,0.00041753,120]
[421599102,1777938734000,-500.0,0.00041753,120]
[421599103,1777938734000,-2061.71,0.00041753,120]
[421599104,1777938734000,-500.0,0.00041753,120]
[421599106,1777938734000,-500.0,0.00041753,120]
[421599107,1777938734000,-500.0,0.00041753,120]
[421599105,1777938734000,-1783.47,0.00041753,120]
[421599108,1777938734000,-500.0,0.00041753,120]
[421599110,1777938734000,-527.86,0.00041753,120]
[421599109,1777938734000,-500.0,0.00041753,120]
[421599113,1777938734000,-525.03,0.00041753,120]
[421599112,1777938734000,-156.57510006,0.00041753,120]
[421599114,1777938734000,-218.68562627,0.00041753,120]
[421599101,1777938734000,-500.0,0.00041753,120]
[421599081,1777938734000,-500.0,0.00041753,120]
[421599053,1777938734000,-539.94,0.00041753,120]
[421599086,1777938734000,-1148.79,0.00041753,120]
[421599058,1777938734000,-782.2,0.00041753,120]
[421599059,1777938734000,-500.0,0.00041753,120]
[421599056,1777938734000,-617.91,0.00041753,120]
[421599057,1777938734000,-500.0,0.00041753,120]
[421599054,1777938734000,-500.0,0.00041753,120]
[421599060,1777938734000,-500.0,0.00041753,120]
[421599064,1777938734000,-500.0,0.00041753,120]
[421599080,1777938734000,-500.0,0.00041753,120]
[421599065,1777938734000,-500.0,0.00041753,120]
[421599063,1777938734000,-500.0,0.00041753,120]
[421599066,1777938734000,-500.0,0.00041753,120]
[421599072,1777938734000,-500.0,0.00041753,120]
[421599071,1777938734000,-500.0,0.00041753,120]
[421599067,1777938734000,-500.0,0.00041753,120]
[421599062,1777938734000,-500.0,0.00041753,120]
[421599068,1777938734000,-500.0,0.00041753,120]
[421599061,1777938734000,-500.0,0.00041753,120]
[421599082,1777938734000,-500.0,0.00041753,120]
[421599079,1777938734000,-550.71,0.00041753,120]
[421599077,1777938734000,-500.0,0.00041753,120]
[421599075,1777938734000,-500.0,0.00041753,120]
[421599078,1777938734000,-500.0,0.00041753,120]
[421599076,1777938734000,-500.0,0.00041753,120]
[421599085,1777938734000,-554.39,0.00041753,120]
[421599084,1777938734000,-639.5,0.00041753,120]
[421599074,1777938734000,-500.0,0.00041753,120]
[421599069,1777938734000,-500.0,0.00041753,120]
[421599070,1777938734000,-500.0,0.00041753,120]
[421599073,1777938734000,-500.0,0.00041753,120]
[421599158,1777938735000,-500.0,0.00041753,120]
[421599155,1777938735000,-500.0,0.00041753,120]
[421599159,1777938735000,-1227.72,0.00041753,120]
[421599153,1777938735000,-500.0,0.00041753,120]
[421599152,1777938735000,-556.71,0.00041753,120]
[421599146,1777938735000,-19191.44,0.00041753,120]
[421599161,1777938735000,-500.0,0.00041753,120]
[421599150,1777938735000,-696.58,0.00041753,120]
[421599151,1777938735000,-500.0,0.00041753,120]
[421599147,1777938735000,-500.0,0.00041753,120]
[421599144,1777938735000,-500.0,0.00041753,120]
[421599162,1777938735000,-2670.18,0.00041753,120]
[421599154,1777938735000,-20831.24,0.00041753,120]
[421599169,1777938735000,-500.0,0.00041753,120]
[421599157,1777938735000,-507.75,0.00041753,120]
[421599156,1777938735000,-500.0,0.00041753,120]
[421599163,1777938735000,-234.29141563,0.00041753,120]
[421599165,1777938735000,-187.86174486,0.00041753,120]
[421599166,1777938735000,-500.0,0.00041753,120]
[421599167,1777938735000,-500.0,0.00041753,120]
[421599168,1777938735000,-500.0,0.00041753,120]
[421599164,1777938735000,-500.0,0.00041753,120]
[421599171,1777938735000,-16320.05,0.00041753,120]
[421599170,1777938735000,-983.68,0.00041753,120]
[421599172,1777938735000,-1581.96,0.00041753,120]
[421599175,1777938735000,-500.0,0.00041753,120]
[421599174,1777938735000,-758.08,0.00041753,120]
[421599145,1777938735000,-500.0,0.00041753,120]
[421599160,1777938735000,-546.18,0.00041753,120]
[421599140,1777938735000,-500.0,0.00041753,120]
[421599133,1777938735000,-689.15,0.00041753,120]
[421599148,1777938735000,-500.0,0.00041753,120]
[421599173,1777938735000,-1414.82,0.00041753,120]
[421599117,1777938735000,-1185.59,0.00041753,120]
[421599116,1777938735000,-550.98,0.00041753,120]
[421599123,1777938735000,-1111.02,0.00041753,120]
[421599115,1777938735000,-500.0,0.00041753,120]
[421599118,1777938735000,-500.0,0.00041753,120]
[421599119,1777938735000,-176.73215878,0.00041753,120]
[421599120,1777938735000,-500.0,0.00041753,120]
[421599122,1777938735000,-500.0,0.00041753,120]
[421599121,1777938735000,-500.0,0.00041753,5]
[421599135,1777938735000,-3866.31,0.00041753,2]
[421599125,1777938735000,-682.65,0.00041753,120]
[421599136,1777938735000,-500.0,0.00041753,120]
[421599149,1777938735000,-500.0,0.00041753,120]
[421599126,1777938735000,-500.0,0.00041753,120]
[421599124,1777938735000,-593.7,0.00041753,120]
[421599132,1777938735000,-500.0,0.00041753,120]
[421599130,1777938735000,-500.0,0.00041753,120]
[421599134,1777938735000,-500.0,0.00041753,120]
[421599127,1777938735000,-500.0,0.00041753,120]
[421599131,1777938735000,-500.0,0.00041753,120]
[421599128,1777938735000,-500.0,0.00041753,120]
[421599137,1777938735000,-500.0,0.00041753,120]
[421599138,1777938735000,-500.0,0.00041753,120]
[421599139,1777938735000,-526.93,0.00041753,120]
[421599141,1777938735000,-500.0,0.00041753,120]
[421599143,1777938735000,-500.0,0.00041753,120]
[421599142,1777938735000,-500.0,0.00041753,120]
[421599129,1777938735000,-500.0,0.00041753,120]
[421599177,1777938735000,-515.78,0.00041753,120]
[421599189,1777938735000,-500.0,0.00041753,120]
[421599188,1777938735000,-500.0,0.00041753,120]
[421599208,1777938735000,-500.0,0.00041753,120]
[421599212,1777938735000,-500.0,0.00041753,120]
[421599210,1777938735000,-500.0,0.00041753,120]
[421599213,1777938735000,-1683.66,0.00041753,120]
[421599211,1777938735000,-500.0,0.00041753,120]
[421599218,1777938735000,-500.20582007,0.00041753,120]
[421599217,1777938735000,-500.0,0.00041753,120]
[421599219,1777938735000,-3600.11,0.00041753,120]
[421599220,1777938735000,-500.0,0.00041753,120]
[421599228,1777938735000,-500.0,0.00041753,120]
[421599229,1777938735000,-511.55,0.00041753,120]
[421599221,1777938735000,-500.0,0.00041753,120]
[421599224,1777938735000,-512.4,0.00041753,120]
[421599209,1777938735000,-500.0,0.00041753,120]
[421599225,1777938735000,-622.82496305,0.00041753,120]
[421599227,1777938735000,-500.0,0.00041753,120]
[421599226,1777938735000,-294.34186285,0.00041753,120]
[421599223,1777938735000,-500.0,0.00041753,120]
[421599231,1777938735000,-2500.0,0.000418,120]
[421599230,1777938735000,-500.0,0.00041753,120]
[421599232,1777938735000,-50000.0,0.000418,30]
[421599234,1777938735000,-1296.77989511,0.000418,120]
[421599233,1777938735000,-152.0,0.000418,120]
[421599235,1777938735000,-1589.73411461,0.000418,120]
[421599237,1777938735000,-33333.5,0.000418,31]
[421599236,1777938735000,-4300.76512826,0.000418,120]
[421599240,1777938735000,-500.0,0.00041808,120]
[421599239,1777938735000,-500.0,0.00041808,3]
[421599222,1777938735000,-602.25,0.00041753,120]
[421599206,1777938735000,-500.0,0.00041753,120]
[421599238,1777938735000,-500.0,0.00041808,3]
[421599214,1777938735000,-500.0,0.00041753,120]
[421599207,1777938735000,-974.58,0.00041753,120]
[421599176,1777938735000,-500.0,0.00041753,120]
[421599179,1777938735000,-500.0,0.00041753,120]
[421599182,1777938735000,-4950.15,0.00041753,120]
[421599181,1777938735000,-500.0,0.00041753,120]
[421599180,1777938735000,-1948.18,0.00041753,120]
[421599183,1777938735000,-500.0,0.00041753,120]
[421599185,1777938735000,-500.0,0.00041753,120]
[421599184,1777938735000,-500.0,0.00041753,120]
[421599186,1777938735000,-500.0,0.00041753,120]
[421599187,1777938735000,-500.0,0.00041753,120]
[421599191,1777938735000,-500.0,0.00041753,120]
[421599192,1777938735000,-531.97,0.00041753,120]
[421599193,1777938735000,-500.0,0.00041753,120]
[421599178,1777938735000,-340.9620943,0.00041753,120]
[421599194,1777938735000,-500.0,0.00041753,120]
[421599201,1777938735000,-500.0,0.00041753,120]